[Event "Marmaris Karya-18 GM-May 2022"]
[Site "Icmeler-Marmaris"]
[Date "2022.05.11"]
[Round "4.1"]
[White "Darban, Morteza"]
[Black "Caglar, Sila"]
[Result "1-0"]
[ECO "D02"]
[WhiteElo "2279"]
[BlackElo "2133"]
[Annotator "TA"]
[PlyCount "95"]
[EventDate "2022.05.11"]
[EventCountry "TUR"]
[SourceTitle "playchess.com"]
[Source "ChessBase"]
[SourceQuality "1"]
[TimeControl "5400+30"]

{[%evp 10,95,25,35,43,22,49,58,42,32,51,30,85,89,72,68,99,92,108,73,119,116,110,124,134,139,139,135,133,136,144,132,143,147,220,220,238,233,267,247,238,203,291,286,470,466,470,470,504,504,490,497,429,343,345,343,343,335,335,308,287,280,234,227,496,489,488,493,1016,1825,1428,778,722,597,1232,1026,427,426,734,672,29970,29971,29968,11611,29975,29976,29975,6041]} 1. Nf3 {[%emt 0:09:00]} d5 {[%emt 0:01:00]} 2. g3 {[%emt 0:00:30]} Nf6 {[%emt 0:01:30]} 3. Bg2 {[%emt 0:00:00]} e6 {[%emt 0:00:00]} 4. O-O {[%emt 0:00:00]} Bd6 {[%emt 0:00:00]} 5. d4 {[%emt 0:09:30]} O-O {[%emt 0:00:30]} 6. c4 {[%emt 0:00:30]} dxc4 {[%emt 0:00:30] Recently 6...h6 got a lot of attention. D02: 1 d4 d5 2 Nf3 sidelines, including 2...Nf6 3 g3 and 2...Nf6 3 Bf4.} 7. Nc3 {[%emt 0:03:30]} c5 {[%emt 0:03:30]} 8. dxc5 {[%emt 0:06:30]} Bxc5 {[%emt 0:00:00] White is slightly better.} 9. Qa4 {[%emt 0:00:30]} a6 {[%emt 0:15:00]} 10. Qxc4 {[%emt 0:02:30]} Qc7 {[%emt 0:00:00] [#]} (10... Nbd7 $11) 11. Be3 $1 $16 {[%emt 0:02:30] Black is on the road to losing.} Nbd7 {[%emt 0:00:00]} 12. a4 {[%emt 0:02:30] Inhibits b5.} Bb6 {[%emt 0:05:30]} 13. Qxc7 {[%emt 0:01:30]} Bxc7 {[%emt 0:00:00] [#]} 14. h3 $146 {[%emt 0:00:30]} ({Predecessor:} 14. a5 Ng4 15. Bd2 Nge5 16. Nxe5 Nxe5 17. Bf4 f6 18. h4 Rf7 19. Ne4 {½-½ (49) Terasti,P-Lardot,D Haapajarvi 1997}) 14... e5 {[%emt 0:04:00]} (14... Nd5 $142) 15. Rac1 {[%emt 0:09:30]} Re8 {[%emt 0:02:30]} 16. Nd2 {[%emt 0:01:30]} Nf8 {[%emt 0:01:30]} 17. Nde4 {[%emt 0:07:30]} Nxe4 {[%emt 0:01:30]} 18. Nxe4 {[%emt 0:00:00]} Ne6 {[%emt 0:01:30]} 19. Rfd1 {[%emt 0:00:00]} f5 {[%emt 0:06:30]} 20. Nd6 {[%emt 0:02:30] White is much more active. The black rooks are badly placed.} Bxd6 {[%emt 0:00:30]} 21. Rxd6 {[%emt 0:00:00] Threatens to win with Bd5.} f4 {[%emt 0:01:30]} (21... e4 $16 22. f3 Nd8) 22. Bb6 $18 {[%emt 0:00:00]} Kf7 {[%emt 0:00:30]} 23. a5 {[%emt 0:04:30]} Rb8 {[%emt 0:04:30]} 24. h4 {[%emt 0:04:30]} Ke7 {[%emt 0:06:30]} 25. Rd5 {[%emt 0:00:30]} Kf6 {[%emt 0:00:30]} (25... Bd7 $142 26. Rxe5 Kf6) 26. e3 {[%emt 0:03:30]} h6 $2 {[%emt 0:03:30]} (26... g6 27. exf4 exf4) 27. exf4 {[%emt 0:04:30]} exf4 {[%emt 0:00:30]} 28. Re1 {[%emt 0:03:30]} fxg3 {[%emt 0:02:30]} 29. fxg3 {[%emt 0:00:30]} Kf7 {[%emt 0:00:30]} 30. Rd6 {[%emt 0:03:38]} Nf8 {[%emt 0:02:30]} 31. Rxe8 {[%emt 0:02:39]} Kxe8 {[%emt 0:00:30]} 32. Rd8+ {[%emt 0:02:12]} Ke7 {[%emt 0:00:30] [#]} 33. Bh3 $1 {[%emt 0:00:08][%mdl 512] This bishop pair is nice.} Ne6 {[%emt 0:00:00]} 34. Rg8 {[%emt 0:02:51]} Kf7 {[%emt 0:01:00]} 35. Bxe6+ {[%emt 0:00:05]} Kxe6 {[%emt 0:00:00][%mdl 4096] Endgame KRB-KRB} 36. Kf2 {[%emt 0:00:17]} ({Don't do} 36. Rxg7 Bd7 37. Rg6+ Kf5 38. Rxh6 Rg8) 36... g5 $2 {[%emt 0:00:00]} (36... Kf7 {keeps fighting.} 37. Rd8 g6) 37. hxg5 {[%emt 0:02:16]} hxg5 {[%emt 0:00:30]} 38. Ke3 {[%emt 0:00:06]} g4 {[%emt 0:01:30]} (38... Kf7 $142) 39. Rd8 {[%emt 0:00:25]} Ra8 {[%emt 0:00:30]} 40. Kf4 {[%emt 0:01:08] Ke4 is the strong threat.} Kf6 {[%emt 0:00:00]} 41. b3 {[%emt 0:00:22]} Rb8 {[%emt 0:01:00]} 42. Ke3 {[%emt 0:02:39]} Ra8 {[%emt 0:00:30]} 43. Kd4 {[%emt 0:00:06]} Ke6 {[%emt 0:00:30]} 44. Kc5 {[%emt 0:02:06]} Rb8 {[%emt 0:01:30]} 45. Bc7 {[%emt 0:01:06]} Ra8 {[%emt 0:01:30]} 46. Kb6 {[%emt 0:00:02] Threatening mate with Bf4.} Ke7 {[%emt 0:00:30]} 47. b4 {[%emt 0:00:06]} Rb8 {[%emt 0:03:30]} 48. Ka7 {[%emt 0:00:16] Weighted Error Value: White=0.10 (very precise) /Black=0.72} 1-0

[Event "Marmaris Karya-18 GM-May 2022"]
[Site "Icmeler-Marmaris"]
[Date "2022.05.11"]
[Round "4.3"]
[White "Toufighi, Homayoon"]
[Black "Angun, Batu"]
[Result "1/2-1/2"]
[ECO "A05"]
[WhiteElo "2439"]
[BlackElo "2326"]
[Annotator "TA"]
[PlyCount "130"]
[EventDate "2022.05.11"]
[EventCountry "TUR"]
[SourceTitle "playchess.com"]
[Source "ChessBase"]
[SourceQuality "1"]
[TimeControl "5400+30"]

{[%evp 16,130,0,-10,32,27,35,33,52,52,50,39,66,62,70,86,89,78,80,75,66,9,70,46,45,8,8,0,0,0,4,10,12,4,49,41,75,0,0,0,0,0,0,0,0,0,0,0,0,-8,0,-162,-133,-160,-159,-172,-169,-373,-362,-393,-368,-1016,-279,-287,-284,-279,-262,-337,-177,-337,-304,-404,-389,-289,0,0,0,-4918,-5131,-3412,-2518,-1751,-1626,-29954,-29954,-29951,-4134,-29951,-29949,-12708,-6303,-29956,-7883,-6413,-6371,-2390,-2182,-29973,-29974,-29973,-29975,-29971,-29976,-29976,-29972,-29970,-29973,-29973,-29974,-29974,-29975,-29975,-29976,-29976,0,0,0]} 1. d4 {[%emt 0:10:00]} Nf6 {[%emt 0:01:00]} 2. Nf3 {[%emt 0:00:30]} g6 {[%emt 0:00:30]} 3. g3 {[%emt 0:01:30]} Bg7 {[%emt 0:00:00]} 4. Bg2 {[%emt 0:00:00]} O-O {[%emt 0:00:00]} 5. O-O {[%emt 0:00:00]} d5 {[%emt 0:00:30]} 6. b3 {[%emt 0:05:30]} c5 {[%emt 0:06:30]} 7. e3 {[%emt 0:00:30]} Nc6 {[%emt 0:01:30]} 8. Bb2 {[%emt 0:00:00]} Ne4 {[%emt 0:01:30]} 9. Nbd2 {[%emt 0:02:00]} cxd4 {[%emt 0:02:30] A05: Réti Opening: 1 Nf3 Nf6.} 10. Nxe4 {[%emt 0:01:30]} dxe4 {[%emt 0:00:00]} 11. Nxd4 {[%emt 0:00:30]} f5 {[%emt 0:10:00] White is slightly better.} 12. Nxc6 {[%emt 0:01:30]} bxc6 {[%emt 0:00:30]} 13. Bxg7 {[%emt 0:00:30]} Kxg7 {[%emt 0:00:00]} 14. Qe1 {[%emt 0:00:30]} Qd6 {[%emt 0:00:00] [#]} 15. Qc3+ $146 {[%emt 0:03:30]} ({Predecessor:} 15. Rd1 Qc5 16. c4 Qe5 17. f3 exf3 18. Bxf3 Rf6 19. Qd2 Rd6 20. Qc1 Bd7 21. c5 Rxd1 22. Rxd1 {1-0 (41) Schmittdiel,E (2485)-Kunze,M (2360) Bad Neuenahr 1991}) 15... Qf6 {[%emt 0:01:30]} 16. Qa5 {[%emt 0:00:30]} h5 {[%emt 0:01:30]} 17. Rad1 {[%emt 0:04:30]} Be6 {[%emt 0:04:30]} 18. Rd4 {[%emt 0:01:30]} (18. c4 $14) 18... Rfc8 {[%emt 0:02:30]} (18... c5 $11 19. Rd2 (19. Qxc5 Rfc8 $11) 19... h4) 19. Qc5 {[%emt 0:00:30] White is more active.} Rd8 {[%emt 0:08:30]} 20. Rfd1 {[%emt 0:03:30]} (20. Qxc6 Rac8 21. Qb7 Rxd4 22. exd4 Rxc2 $15) 20... Rd5 {[%emt 0:01:30]} 21. Qa3 {[%emt 0:01:30]} Rxd4 {[%emt 0:08:30]} 22. exd4 {[%emt 0:06:30]} h4 {[%emt 0:02:30]} 23. Qc5 {[%emt 0:00:30]} hxg3 {[%emt 0:05:30]} 24. hxg3 {[%emt 0:01:30]} Bf7 {[%emt 0:04:30]} 25. f3 $1 {[%emt 0:03:30]} Bd5 {[%emt 0:13:30]} 26. c4 {[%emt 0:08:30]} (26. fxe4 $1 $16 Bxe4 27. Bxe4 fxe4 28. Rf1) 26... Qg5 $1 $11 {[%emt 0:00:30]} 27. f4 {[%emt 0:21:30]} (27. cxd5 Qe3+ 28. Kf1 (28. Kh2 $2 Rh8+ 29. Bh3 Qf2+ 30. Kh1 Rxh3#) 28... exf3 $17) 27... Qg4 {[%emt 0:04:35]} 28. Rf1 {[%emt 0:02:30]} (28. Qxe7+ Bf7 29. Rf1 (29. Qe5+ $2 Kg8 $19) 29... Qxg3 $17) 28... Bf7 {[%emt 0:00:39]} 29. Qe5+ {[%emt 0:00:00]} (29. Qxe7 Qxg3 30. Qe5+ Kg8 $19) 29... Kf8 $1 {[%emt 0:03:17]} (29... Kg8 30. Kf2 Kf8 31. Qc7 $16 (31. Qh8+ Bg8 $11)) 30. Kf2 {[%emt 0:00:00]} Rd8 {[%emt 0:02:00][%cal Ba8d8,Bd8d6,Bd6e6][%mdl 32]} 31. Rh1 {[%emt 0:03:39] Strongly threatening Rh7. Chess con chili.} Bg8 {[%emt 0:00:07] Inhibits Rh7.} 32. Rc1 {[%emt 0:12:16]} g5 {[%emt 0:03:31]} 33. Rh1 $2 {[%emt 0:03:09]} (33. fxg5 $11 Qxg5 34. Rd1) 33... gxf4 $19 {[%emt 0:00:28]} 34. gxf4 {[%emt 0:01:23]} Rd6 $1 {[%emt 0:00:49]} 35. Rh3 {[%emt 0:00:37]} Re6 $1 {[%emt 0:03:16]} (35... Rg6 36. Bf1 $15) 36. Qb8+ {[%emt 0:02:11]} (36. Rg3 Rxe5 37. Rxg4) 36... Kf7 $1 {[%emt 0:00:20]} 37. Bf1 {[%emt 0:00:01] And now Rg3 would win.} (37. Rh8 e3+ 38. Kg1 e2 39. Kh2 e1=Q 40. Qxg8+ Qxg8 41. Rxg8 Kxg8 42. Bf3 Qf2+ 43. Kh3 Rh6+) 37... Rd6 {[%emt 0:02:26]} 38. c5 $2 {[%emt 0:01:12]} (38. Rg3 Qxf4+ 39. Kg2) 38... Qxf4+ $2 {[%emt 0:00:46]} (38... Rxd4 {Hoping for ...Rd2+.} 39. Rh8 Rd2+ 40. Ke3 Rd3+ $1 {[%mdl 512]} 41. Bxd3 Qf3+ 42. Kd2 Qxd3+ 43. Kc1 Qc3+ 44. Kb1 Qxh8) 39. Ke1 {[%emt 0:00:28]} Qc1+ {[%emt 0:00:30]} 40. Kf2 {[%emt 0:00:09]} Qd2+ {[%emt 0:00:04]} ({But not} 40... Rxd4 $2 41. Bc4+ e6 42. Rg3 Rd2+ 43. Be2 Qxc5+ 44. Ke1 Qc1+ 45. Kf2 e3+ 46. Rxe3 $17) 41. Be2 {[%emt 0:00:45]} Re6 {[%emt 0:04:34]} ({Wrong is} 41... Qxd4+ $2 42. Kf1 Rg6 43. Rg3 $19) ({Don't blunder} 41... Rxd4 $2 42. Rg3 Rd8 43. Qe5 Qd4+ 44. Qxd4 Rxd4 45. Bh5+ Kf8 46. Rg5) (41... Rg6 $142 42. Qe5 Re6) 42. Rg3 $2 {[%emt 0:00:38]} (42. Kf1 {only move.} Qc1+ 43. Kf2) 42... Bh7 $1 {[%emt 0:01:25]} 43. Kf1 {[%emt 0:00:01] Black must now prevent Qh8.} Qc1+ {[%emt 0:02:12]} 44. Kg2 {[%emt 0:00:23]} f4 $2 {[%emt 0:00:34]} (44... Qb2 $19 45. Kf1 Qa1+ 46. Kg2 Qxa2) 45. Bh5+ $11 {[%emt 0:00:30]} Bg6 {[%emt 0:00:06]} 46. Rg4 $2 {[%emt 0:00:37][%mdl 8192]} f3+ $19 {[%emt 0:00:16]} 47. Kh2 {[%emt 0:00:30]} Qd2+ {[%emt 0:00:50]} 48. Kh3 {[%emt 0:00:19]} Qh6 {[%emt 0:01:03]} 49. Rf4+ {[%emt 0:00:08]} Rf6 {[%emt 0:00:01]} 50. Rxf6+ {[%emt 0:00:14]} Kxf6 {[%emt 0:00:24] KQB-KQB} 51. Qe5+ {[%emt 0:00:26]} Kf7 {[%emt 0:00:03]} 52. Qf5+ {[%emt 0:00:19]} Kg7 {[%emt 0:00:04]} 53. Qxg6+ {[%emt 0:01:31]} Qxg6 {[%emt 0:00:03]} 54. Bxg6 {[%emt 0:00:00] KB-KP} e3 {[%emt 0:01:23]} 55. Kg3 {[%emt 0:00:33]} e2 {[%emt 0:00:08]} 56. Kf2 {[%emt 0:00:02]} Kxg6 {[%emt 0:00:04] KP-KP} 57. d5 {[%emt 0:00:08]} Kf7 $1 {[%emt 0:00:13]} 58. dxc6 {[%emt 0:00:06] [#]} Ke8 $1 {[%emt 0:00:03]} 59. b4 {[%emt 0:00:09]} Kd8 {[%emt 0:00:05]} 60. b5 {[%emt 0:01:34]} Kc7 {[%emt 0:00:04]} 61. Ke1 {[%emt 0:00:49]} e5 {[%emt 0:00:27][%cal Be7e5,Be5e4,Be4e3][%mdl 32]} 62. Kf2 {[%emt 0:00:31]} e4 {[%emt 0:01:13]} 63. a3 {[%emt 0:00:42]} e3+ {[%emt 0:00:59]} 64. Ke1 {[%emt 0:00:05] [#]} a5 $2 {[%emt 0:00:47]} (64... a6 $1 {mates} 65. bxa6 Kxc6 66. a4 Kc7 67. a5 Kc6 68. a7 Kb7 69. a8=R Kxa8 70. c6 Ka7 71. c7 Kb7 72. c8=R Kxc8 73. a6 f2+ 74. Kxe2 Kb8 75. a7+ Kxa7 76. Kf1 Kb7 77. Kg2 Kc6 78. Kf1 Kc5 79. Ke2 Kc4 80. Kf1 Kd3 81. Kg2 Ke2 82. Kh3 f1=Q+ 83. Kg4 Qf6 84. Kh5 Qg7 85. Kh4 Kf2 86. Kh5 Kf3 87. Kh4 Qh6#) 65. a4 $11 {[%emt 0:00:25]} Kc8 {[%emt 0:00:10] Weighted Error Value: White=0.72/Black=0.27 (precise)} (65... Kd8 $5 66. b6 Kc8 $11) 1/2-1/2

[Event "Marmaris Karya-18 GM-May 2022"]
[Site "Icmeler-Marmaris"]
[Date "2022.05.11"]
[Round "4.4"]
[White "Sevdimaliyev, Urfan"]
[Black "Ozdemir, Serhan Berat"]
[Result "1-0"]
[ECO "A31"]
[WhiteElo "2331"]
[BlackElo "2117"]
[Annotator "TA"]
[PlyCount "71"]
[EventDate "2022.05.11"]
[EventCountry "TUR"]
[SourceTitle "playchess.com"]
[Source "ChessBase"]
[SourceQuality "1"]
[TimeControl "5400+30"]

{[%evp 23,71,42,30,19,2,17,77,67,75,73,127,43,90,97,120,114,139,131,124,122,109,114,121,125,132,122,109,80,202,196,196,184,553,585,1010,995,1711,1689,1712,1693,1688,1688,29985,2839,29985,2747,3111,2891,6962,2991]} 1. e4 {[%emt 0:12:00]} c5 {[%emt 0:01:00]} 2. Nf3 {[%emt 0:00:30]} e6 {[%emt 0:00:30]} 3. c4 {[%emt 0:00:30]} a6 {[%emt 0:00:30]} 4. Nc3 {[%emt 0:00:30]} Qc7 {[%emt 0:00:00]} 5. Be2 {[%emt 0:00:00]} Nf6 {[%emt 0:00:00]} 6. O-O {[%emt 0:00:00]} d6 {[%emt 0:01:30]} 7. d4 {[%emt 0:00:30]} cxd4 {[%emt 0:00:00]} 8. Nxd4 {[%emt 0:00:30]} Be7 {[%emt 0:00:00]} 9. Be3 {[%emt 0:00:30]} O-O {[%emt 0:00:30]} 10. Qd2 {[%emt 0:00:30]} b6 {[%emt 0:00:00]} 11. f3 {[%emt 0:04:30]} Nbd7 {[%emt 0:01:00]} 12. a4 {[%emt 0:00:30] has lost popularity (12.Rfc1).} Bb7 {[%emt 0:00:00]} 13. a5 {[%emt 0:00:30] A31: Symmetrical English: 2 Nf3 Nf6 3 d4.} bxa5 {[%emt 0:01:00]} 14. Nb3 {[%emt 0:00:00]} Rab8 {[%emt 0:00:30]} (14... d5 $1 $11 {remains equal.}) 15. Nxa5 $16 {[%emt 0:00:00] White is more active. White is better.} Ba8 {[%emt 0:00:00][%cal Od6d5]} 16. Rfc1 {[%emt 0:00:30][%cal Ob2b4]} h5 {[%emt 0:01:00]} (16... Rfe8 $142) 17. Na4 {[%emt 0:04:30] [#]} (17. b4 $16) 17... h4 $146 {[%emt 0:06:30]} (17... Qd8 $1 $14 {was preferrable.}) ({Predecessor:} 17... Nc5 18. b4 Nxa4 19. Rxa4 Rfc8 20. c5 dxc5 21. Bxa6 Rd8 22. Qc2 Bd6 23. h4 Bf4 {½-½ (23) Skorepa,T (2000)-Ondracek,O (2133) Havlickuv Brod 2015}) 18. b4 $36 {[%emt 0:06:30][%cal Bb2b4,Bb4b5][%mdl 2080] White has strong initiative.} h3 {[%emt 0:04:30]} 19. g3 {[%emt 0:02:30]} Rfd8 {[%emt 0:06:30]} 20. b5 {[%emt 0:07:30]} Nc5 {[%emt 0:04:30]} 21. Nxc5 {[%emt 0:13:30]} dxc5 {[%emt 0:00:00]} 22. Qe1 {[%emt 0:01:30]} Bd6 {[%emt 0:02:00]} 23. Nb3 {[%emt 0:05:30][%cal Ba5b3,Bb3c5,Bc5d3][%mdl 32]} (23. bxa6 $6 Rb6 $11) 23... Bb7 {[%emt 0:15:30]} 24. Qa5 {[%emt 0:08:30]} (24. bxa6 Bxa6 25. Ra3 Rb6 $14) 24... Qe7 {[%emt 0:10:30]} 25. bxa6 {[%emt 0:02:30]} Bxa6 {[%emt 0:02:30] Loses the game.} 26. Nxc5 $18 {[%emt 0:01:30]} Rb2 {[%emt 0:01:30]} 27. Bf1 {[%emt 0:02:30]} Nh5 $2 {[%emt 0:08:30]} (27... Bxg3 {is a better chance.} 28. hxg3 Nh5 29. Bxh3 Nxg3) 28. Nd3 {[%emt 0:06:30]} ({And not} 28. Nxa6 Qh4 29. Qg5 (29. gxh4 $2 Bxh2+ 30. Kh1 Ng3#) 29... Qxg5 30. Bxg5 Bxg3 $17) 28... Qh4 {[%emt 0:20:35][%cal Oh4g3] [#] ( -> ...Qxg3+!)} 29. Nxb2 {[%emt 0:04:52]} (29. gxh4 $2 {leads to mate.} Bxh2+ 30. Kh1 Ng3#) 29... Nxg3 {[%emt 0:00:06]} 30. Bg5 {[%emt 0:05:39]} Bf4 {[%emt 0:01:26]} 31. Bxf4 {[%emt 0:01:16]} (31. Bxh4 $2 Be3#) 31... Nxe4 {[%emt 0:03:57]} 32. fxe4 {[%emt 0:01:30]} Qxf4 {[%emt 0:01:54]} 33. Qxd8+ {[%emt 0:00:08]} Kh7 {[%emt 0:00:01]} 34. Qd3 {[%emt 0:00:25]} (34. Rc3 $142 Bb7 35. Rxh3+ Kg6 36. Rg3+ Kh7 37. Rh3+ Kg6 38. Raa3 Bxe4 39. Rag3+ Qxg3+ 40. Rxg3+ Kh7 41. Qf8 Bg6 42. Rh3+ Bh5 43. Qxf7 Kh8 44. Rxh5#) 34... Bb7 {[%emt 0:00:02]} 35. Qxh3+ {[%emt 0:00:07]} Kg8 {[%emt 0:00:01]} 36. Bg2 {[%emt 0:00:15] Weighted Error Value: White=0.07 (flawless) /Black=0.96} 1-0

[Event "Marmaris Karya-18 GM-May 2022"]
[Site "Icmeler-Marmaris"]
[Date "2022.05.11"]
[Round "4.5"]
[White "Odeev, Handszar"]
[Black "Inci, Okan"]
[Result "1-0"]
[ECO "C23"]
[WhiteElo "2305"]
[BlackElo "1688"]
[Annotator "TA"]
[PlyCount "71"]
[EventDate "2022.05.11"]
[EventCountry "TUR"]
[SourceTitle "playchess.com"]
[Source "ChessBase"]
[SourceQuality "1"]
[TimeControl "5400+30"]

{[%evp 9,71,0,12,16,57,54,59,23,23,15,14,15,13,19,35,36,39,26,87,78,140,138,137,134,137,138,161,150,186,185,188,140,160,155,203,169,224,206,230,197,315,328,365,350,449,416,503,481,748,760,987,951,999,998,976,980,1424,1425,1416,1404,1354,1287,2002,1914]} 1. e4 {[%emt 0:15:00]} e5 {[%emt 0:01:00]} 2. Qf3 {[%emt 0:02:30]} Nf6 {[%emt 0:01:30]} 3. Bc4 {[%emt 0:00:30]} Nc6 {[%emt 0:02:30]} 4. Ne2 {[%emt 0:00:00]} d6 {[%emt 0:01:30]} 5. Nbc3 {[%emt 0:02:00]} Be6 {[%emt 0:00:30] [#]} 6. Nd5 $146 {[%emt 0:03:30] C23: Bishop's Opening: 2...Bc5.} ({Predecessor:} 6. Bb3 d5 7. exd5 Bxd5 8. Nxd5 Bd6 9. Nxf6+ gxf6 10. Qh5 Rf8 11. d3 Qd7 12. Bh6 {1-0 (44) Sanchez Heras,A-Orozco Aguilera,R Chess.com INT 2020}) 6... Bxd5 {[%emt 0:01:30]} 7. exd5 {[%emt 0:00:30]} e4 8. Qc3 {[%emt 0:09:30] White is slightly better.} Ne5 {[%emt 0:03:00]} 9. Bb3 {[%emt 0:00:30]} Be7 {[%emt 0:01:30]} 10. d4 {[%emt 0:00:30]} exd3 $1 {[%emt 0:00:30]} 11. cxd3 {[%emt 0:00:30]} O-O {[%emt 0:00:30]} 12. d4 {[%emt 0:02:30]} Ng6 {[%emt 0:01:30]} 13. O-O {[%emt 0:03:30]} Ne4 {[%emt 0:10:30]} (13... Re8 $11) 14. Qd3 $16 {[%emt 0:02:30] Black is on the road to losing.} f5 {[%emt 0:02:30]} (14... Nf6 $142) 15. f3 {[%emt 0:05:30]} Ng5 {[%emt 0:00:30]} 16. Bd2 {[%emt 0:02:30]} Qd7 {[%emt 0:02:30]} 17. Rac1 {[%emt 0:01:30]} Kh8 {[%emt 0:05:30]} 18. Qc4 {[%emt 0:04:30]} Rac8 {[%emt 0:04:30]} 19. Ba4 {[%emt 0:00:30]} Qd8 {[%emt 0:00:30]} 20. Ba5 {[%emt 0:08:30]} (20. Qd3 $18) 20... b6 {[%emt 0:02:30]} 21. Bd2 {[%emt 0:00:00] White is more active.} Bf6 {[%emt 0:01:30]} (21... c5 $16 {was necessary.} 22. dxc6 d5) 22. g3 {[%emt 0:08:00]} h5 {[%emt 0:03:30]} (22... a6 {was called for.}) 23. h4 {[%emt 0:03:30]} Nh7 {[%emt 0:00:30]} 24. Bb5 {[%emt 0:04:44]} Bxh4 {[%emt 0:07:30]} (24... Rf7 {keeps fighting.} 25. Qd3 Kg8) 25. gxh4 $18 {[%emt 0:00:16]} Qxh4 {[%emt 0:02:30]} 26. Kg2 {[%emt 0:05:27] aiming for Rh1.} f4 {[%emt 0:00:30]} 27. Rh1 {[%emt 0:00:21]} Qg5+ {[%emt 0:01:30]} 28. Kf2 $1 {[%emt 0:00:03] White is clearly winning.} ({Inferior is} 28. Kf1 Nh4 29. Rg1 {[#]} (29. Ke1 Nxf3+ 30. Kd1 Nxd2 $17) 29... Nxf3 $1 30. Rxg5 Nxd2+ 31. Kf2 Nxc4 32. Rxh5 g6 $1 33. Rxh7+ Kxh7 $11) 28... Rf5 {[%emt 0:06:30]} (28... Nh4 $2 29. Rcg1 Qe7 30. Qd3 $18) (28... Rf7 $142 29. Rcg1 Qh6) 29. Rcg1 {[%emt 0:02:15]} Qh6 {[%emt 0:00:00]} 30. Bd7 {[%emt 0:00:13][%csl LRc8,LRf5]} Rcf8 {[%emt 0:00:00]} 31. Bxf5 {[%emt 0:00:08]} Rxf5 {[%emt 0:00:30]} 32. Qxc7 {[%emt 0:00:36]} h4 {[%emt 0:00:30]} 33. Qc8+ {[%emt 0:02:02]} Rf8 {[%emt 0:00:00]} 34. Qg4 {[%emt 0:00:11]} Rf6 {[%emt 0:00:00]} 35. Nc3 {[%emt 0:00:14]} Nhf8 {[%emt 0:04:30]} 36. Ne4 {[%emt 0:00:20] Weighted Error Value: White=0.08 (flawless) /Black=0.41} 1-0

[Event "Marmaris Karya-18 GM-May 2022"]
[Site "Icmeler-Marmaris"]
[Date "2022.05.12"]
[Round "5.1"]
[White "Toufighi, Homayoon"]
[Black "Caglar, Sila"]
[Result "1-0"]
[ECO "B03"]
[WhiteElo "2439"]
[BlackElo "2133"]
[Annotator "TA"]
[PlyCount "67"]
[EventDate "2022.05.11"]
[EventCountry "TUR"]
[SourceTitle "playchess.com"]
[Source "ChessBase"]
[SourceQuality "1"]
[TimeControl "5400+30"]

{[%evp 14,66,29,0,0,9,3,0,0,10,7,0,0,1,0,16,5,0,158,150,124,116,136,49,54,13,40,22,21,14,52,52,38,0,99,107,255,262,345,340,345,345,336,335,1236,1221,29984,29984,29980,1708,29992,29992,29998,29999,29999]} 1. e4 {[%emt 0:03:00][%cal Be2e4,Be4e5][%mdl 32]} Nf6 {[%emt 0:01:00][%cal Bg8f6,Bf6d5,Bd5b6][%mdl 32]} 2. e5 {[%emt 0:00:00]} Nd5 {[%emt 0:00:30]} 3. d4 {[%emt 0:00:00]} d6 {[%emt 0:00:00]} 4. c4 {[%emt 0:00:00]} Nb6 {[%emt 0:00:00]} 5. exd6 {[%emt 0:00:00]} cxd6 {[%emt 0:00:30]} 6. Nc3 {[%emt 0:00:30]} g6 {[%emt 0:00:00]} 7. a4 {[%emt 0:00:00]} a5 {[%emt 0:04:00] was the old line (7...Bg7).} 8. c5 {[%emt 0:00:00]} dxc5 {[%emt 0:04:30] B03: Alekhine's Defence: Four Pawns Attack.} 9. Bb5+ {[%emt 0:00:00]} N6d7 $1 {[%emt 0:01:30]} (9... Nc6 $2 10. d5 $18 (10. dxc5 Qxd1+ 11. Kxd1 Nd7 $11)) 10. Bg5 {[%emt 0:00:00] And now Qe2 would win.} h6 {[%emt 0:02:30] [#] The position is equal.} 11. Bh4 $146 {[%emt 0:00:30] Hoping for Nd5.} ({Predecessor:} 11. Be3 Bg7 12. dxc5 O-O 13. Qd2 Ne5 14. Bxh6 Bf5 15. Qf4 Bxh6 16. Qxh6 Qd4 17. Nh3 {1-0 (33) Dovzik,J (2360)-Wilke,J (2190) Massy 1992}) 11... Nc6 {[%emt 0:16:30]} 12. d5 {[%emt 0:00:00]} Nd4 {[%emt 0:02:30]} 13. d6 $36 {[%emt 0:01:00][%mdl 2048] Black is under pressure.} g5 {[%emt 0:06:30]} 14. Bg3 {[%emt 0:00:00] Strongly threatening h4.} exd6 {[%emt 0:04:30]} 15. Nf3 {[%emt 0:00:00]} Be7 $2 {[%emt 0:20:30]} (15... Nxb5 $11 16. Nxb5 Nf6) 16. Nxd4 $16 {[%emt 0:06:30]} cxd4 {[%emt 0:00:00]} 17. Qxd4 {[%emt 0:01:30]} O-O {[%emt 0:01:00]} 18. h4 {[%emt 0:03:30] 0x0.00288eea8ff6dp-1022s more active pieces. The black rooks are badly placed.} (18. Bxd6 $6 Bxd6 19. Qxd6 Nf6 $11) ({Better is} 18. Rd1 $16) 18... Bf6 $14 {[%emt 0:01:30]} 19. Qxd6 {[%emt 0:00:00]} (19. Qd1 $5 {[%cal Rg3d6]}) 19... Re8+ {[%emt 0:04:30]} 20. Kf1 {[%emt 0:01:00]} gxh4 {[%emt 0:05:30]} ({Much less strong is} 20... Re6 21. Qd1 $16) 21. Bf4 {[%emt 0:17:30] Black must now prevent Rd1.} Re6 {[%emt 0:09:48]} (21... Ne5 $5 {[%cal Rd8d6]} 22. Rd1 Bg4 $11) 22. Qd5 {[%emt 0:02:30]} Nb6 {[%emt 0:08:46]} 23. Qh5 {[%emt 0:05:30]} Bd7 {[%emt 0:00:41]} (23... Qd4 $11 {remains equal.} 24. Bxh6 (24. Qxh6 Bd7 $15) 24... Re5) 24. Rd1 $16 {[%emt 0:01:30] Threatens to win with Bxd7.} Bxb5+ {[%emt 0:00:16] A mistake that costs the game.} (24... Qc8 $16) 25. Nxb5 $18 {[%emt 0:00:30] Chess con chili.} ({And not} 25. axb5 Qc8 26. Kg1 Qe8 $11) 25... Qe7 {[%emt 0:00:43]} 26. Nc7 {[%emt 0:04:30] Inhibits Re8.} Rc8 {[%emt 0:01:37]} 27. Nxe6 {[%emt 0:02:30]} Qxe6 {[%emt 0:00:06]} 28. Bxh6 {[%emt 0:00:30]} Rc2 $2 {[%emt 0:01:06]} (28... Nd7 29. Rh3 Rc5) 29. Re1 {[%emt 0:02:30]} Qc4+ {[%emt 0:01:23]} 30. Kg1 {[%emt 0:00:30]} Qxa4 {[%emt 0:00:09] [#]} 31. Bg5 {[%emt 0:00:30]} (31. Re8+ $142 $3 {[%mdl 512]} Qxe8 32. Qg4+ Kh8 33. Rxh4 Qe1+ 34. Kh2 Qe5+ 35. f4 Qxf4+ 36. Qxf4) 31... Qb5 {[%emt 0:02:08] [#]} 32. Rxh4 $1 {[%emt 0:00:30] White mates.} Qxg5 {[%emt 0:01:11]} (32... Be5 33. Qh7+) 33. Re8+ {[%emt 0:00:00]} Kg7 {[%emt 0:00:07]} 34. Qh7# {Weighted Error Value: White=0.11 (very precise) /Black=0.86} 1-0